fUSD/lending_fUSD_20250818
["ID","MTS","AMOUNT","RATE_DAILY","PERIOD"]
[380078073,1755531303335,-400.0,0.00030136,120]
[380078074,1755531303375,-1668.98,0.00030136,120]
[380078075,1755531303413,-918.16,0.00030136,120]
[380078076,1755531303455,-560.6,0.00030136,120]
[380078077,1755531303496,-519.78,0.00030136,120]
[380078078,1755531303540,-3130.45,0.00030136,120]
[380078079,1755531303580,-539.87,0.00030136,120]
[380078080,1755531303622,-895.63,0.00030136,120]
[380078081,1755531303663,-666.03,0.00030136,120]
[380078082,1755531303708,-533.75,0.00030136,120]
[380078083,1755531303748,-438.94,0.00030136,120]
[380078084,1755531303791,-400.0,0.00030136,120]
[380078085,1755531303834,-516.51,0.00030136,120]
[380078086,1755531303873,-400.0,0.00030136,120]
[380078087,1755531303916,-400.0,0.00030136,120]
[380078088,1755531303960,-443.38,0.00030136,120]
[380078089,1755531303997,-706.46,0.00030136,120]
[380078090,1755531304037,-526.74,0.00030136,120]
[380078091,1755531304083,-400.0,0.00030136,120]
[380078092,1755531304122,-3336.03,0.00030136,120]
[380078093,1755531304162,-400.0,0.00030136,120]
[380078094,1755531304206,-837.38,0.00030136,120]
[380078095,1755531304245,-400.0,0.00030136,120]
[380078096,1755531304291,-3758.38,0.00030136,120]
[380078097,1755531304333,-1832.53,0.00030136,120]
[380078098,1755531304373,-407.46,0.00030136,120]
[380078099,1755531304413,-400.0,0.00030136,120]
[380078100,1755531304453,-7618.95,0.00030136,120]
[380078101,1755531304492,-777.9,0.00030136,120]
[380078102,1755531304531,-2909.39,0.00030136,120]
[380078103,1755531304568,-3090.16,0.00030136,120]
[380078104,1755531304606,-400.0,0.00030136,120]
[380078105,1755531304643,-972.28,0.00030136,120]
[380078106,1755531304686,-9090.3,0.00030136,120]
[380078107,1755531304731,-400.0,0.00030136,120]
[380078108,1755531304773,-1034.91,0.00030136,120]
[380078109,1755531304815,-479.89,0.00030136,120]
[380078110,1755531304857,-1238.0,0.00030136,120]
[380078111,1755531304899,-400.0,0.00030136,120]
[380078112,1755531304941,-400.0,0.00030136,120]
[380078113,1755531304983,-400.0,0.00030136,120]
[380078114,1755531305020,-400.0,0.00030136,120]
[380078115,1755531305058,-1354.29,0.00030136,120]
[380078116,1755531305095,-976.37,0.00030136,120]
[380078117,1755531305132,-400.0,0.00030136,120]
[380078118,1755531305172,-400.0,0.00030136,120]
[380078119,1755531305215,-400.0,0.00030136,120]
[380078120,1755531305252,-3402.14,0.00030136,120]
[380078121,1755531305293,-1206.51,0.00030136,120]
[380078122,1755531305331,-1103.25,0.00030136,120]
[380078123,1755531305370,-400.0,0.00030136,120]
[380078124,1755531305408,-400.0,0.00030136,120]
[380078125,1755531305447,-761.94,0.00030136,120]
[380078126,1755531305482,-839.83,0.00030136,120]
[380078127,1755531305522,-725.04,0.00030136,120]
[380078128,1755531305559,-1090.28,0.00030136,120]
[380078129,1755531305596,-400.0,0.00030136,120]
[380078130,1755531305633,-1534.15,0.00030136,120]
[380078131,1755531305680,-4326.76,0.00030136,120]
[380078132,1755531305718,-615.92,0.00030136,120]
[380078133,1755531305756,-579.27,0.00030136,120]
[380078134,1755531305793,-400.0,0.00030136,120]
[380078135,1755531305831,-3639.38,0.00030136,120]
[380078136,1755531305868,-400.0,0.00030136,120]
[380078137,1755531305908,-2038.58,0.00030136,120]
[380078138,1755531305946,-400.0,0.00030136,120]
[380078139,1755531305983,-2797.24,0.00030136,120]
[380078140,1755531306020,-683.2,0.00030136,120]
[380078141,1755531306059,-400.0,0.00030136,120]
[380078142,1755531306096,-400.0,0.00030136,120]
[380078143,1755531306135,-1718.05,0.00030136,120]
[380078144,1755531306174,-4182.51,0.00030136,120]
[380078145,1755531306215,-502.35,0.00030136,120]
[380078146,1755531306255,-6295.11,0.00030136,120]
[380078147,1755531306293,-400.0,0.00030136,120]
[380078148,1755531306332,-400.0,0.00030136,120]
[380078149,1755531306370,-400.0,0.00030136,120]
[380078150,1755531306406,-1427.56,0.00030136,120]
[380078151,1755531306448,-400.0,0.00030136,120]
[380078152,1755531306490,-619.94,0.00030136,120]
[380078153,1755531306530,-401.397013,0.00030136,120]
[380078154,1755531306925,-1488.52,0.00030136,120]
[380078155,1755531307008,-400.0,0.00030136,120]
[380078156,1755531307049,-411.17,0.00030136,120]
[380078157,1755531307090,-1735.42,0.00030136,120]
[380078158,1755531307131,-400.0,0.00030136,120]
[380078159,1755531307169,-400.0,0.00030136,120]
[380078160,1755531307210,-1080.28,0.00030136,120]
[380078161,1755531307247,-400.0,0.00030136,120]
[380078162,1755531307288,-400.0,0.00030136,120]
[380078163,1755531307325,-432.08,0.00030136,120]
[380078164,1755531307363,-400.0,0.00030136,120]
[380078165,1755531307401,-400.0,0.00030136,120]
[380078166,1755531307437,-5508.55,0.00030136,120]
[380078167,1755531307474,-400.0,0.00030136,120]
[380078168,1755531307510,-400.0,0.00030136,120]
[380078169,1755531307546,-400.0,0.00030136,120]
[380078170,1755531307582,-400.0,0.00030136,120]
[380078171,1755531307620,-400.0,0.00030136,120]
[380078172,1755531307658,-1050.76,0.00030136,120]
[380078173,1755531307694,-2870.81,0.00030136,120]
[380078174,1755531307731,-919.08,0.00030136,120]
[380078175,1755531307767,-1992.68,0.00030136,120]
[380078176,1755531307803,-400.0,0.00030136,120]
[380078177,1755531307840,-3684.7,0.00030136,120]
[380078178,1755531307879,-1715.67,0.00030136,120]
[380078179,1755531307918,-958.62,0.00030136,120]
[380078180,1755531307960,-6117.57,0.00030136,120]
[380078181,1755531307999,-3062.51,0.00030136,120]
[380078182,1755531308041,-2026.02,0.00030136,120]
[380078183,1755531308082,-477.15,0.00030136,120]
[380078184,1755531308123,-1281.34,0.00030136,120]
[380078185,1755531308161,-1697.43,0.00030136,120]
[380078186,1755531308198,-812.09,0.00030136,120]
[380078187,1755531308237,-5954.18,0.00030136,120]
[380078188,1755531308274,-400.0,0.00030136,120]
[380078189,1755531308311,-1273.16,0.00030136,120]
[380078190,1755531308348,-556.04,0.00030136,120]
[380078191,1755531308389,-1446.23,0.00030136,120]
[380078192,1755531308427,-400.0,0.00030136,120]
[380078193,1755531308464,-708.16,0.00030136,120]
[380078194,1755531308501,-8688.61,0.00030136,120]
[380078195,1755531308539,-402.03,0.00030136,120]
[380078196,1755531308578,-400.0,0.00030136,120]
[380078197,1755531308615,-400.0,0.00030136,120]
[380078198,1755531308653,-400.0,0.00030136,120]
[380078199,1755531308688,-701.46,0.00030136,120]
[380078200,1755531308723,-1059.25,0.00030136,120]
[380078201,1755531308758,-400.0,0.00030136,120]
[380078202,1755531308795,-2995.99,0.00030136,120]
[380078203,1755531308831,-9485.17,0.00030136,120]
[380078204,1755531308866,-400.0,0.00030136,120]
[380078205,1755531308903,-400.0,0.00030136,120]
[380078206,1755531308940,-463.18,0.00030136,120]
[380078207,1755531308978,-3898.08,0.00030136,120]
[380078208,1755531309017,-2500.0,0.00030136,120]
[380078209,1755531309054,-400.0,0.00030136,120]
[380078210,1755531309091,-400.0,0.00030136,120]
[380078211,1755531309129,-400.0,0.00030136,120]
[380078212,1755531309165,-400.0,0.00030136,120]
[380078213,1755531309205,-400.0,0.00030136,120]
[380078214,1755531309243,-400.0,0.00030136,120]
[380078215,1755531309281,-400.0,0.00030136,120]
[380078216,1755531309317,-3602.65,0.00030136,120]
[380078217,1755531309354,-844.5,0.00030136,120]
[380078218,1755531309391,-400.0,0.00030136,120]
[380078219,1755531309428,-969.02,0.00030136,120]
[380078220,1755531309465,-400.0,0.00030136,120]
[380078221,1755531309503,-1379.67,0.00030136,120]
[380078222,1755531309539,-559.7,0.00030136,120]
[380078223,1755531309575,-400.0,0.00030136,120]
[380078224,1755531309611,-400.0,0.00030136,120]
[380078225,1755531309647,-1261.68,0.00030136,120]
[380078226,1755531309684,-4052.31,0.00030136,120]
[380078227,1755531309720,-3406.91,0.00030136,120]
[380078228,1755531309757,-400.0,0.00030136,120]
[380078229,1755531309798,-1616.51,0.00030136,120]
[380078230,1755531309838,-400.67,0.00030136,120]
[380078231,1755531309879,-2301.52,0.00030136,120]
[380078232,1755531310017,-400.0,0.00030136,120]
[380078233,1755531310056,-673.71,0.00030136,120]
[380078234,1755531310093,-3314.95,0.00030136,120]
[380078235,1755531310131,-400.0,0.00030136,120]
[380078236,1755531310169,-846.84,0.00030136,120]
[380078237,1755531310209,-400.0,0.00030136,120]
[380078238,1755531310248,-1557.82,0.00030136,120]
[380078239,1755531310286,-400.0,0.00030136,120]
[380078240,1755531310324,-1948.39,0.00030136,120]
[380078241,1755531310361,-4106.01,0.00030136,120]
[380078242,1755531310397,-400.0,0.00030136,120]
[380078243,1755531310434,-3340.57,0.00030136,120]
[380078244,1755531310471,-1407.02,0.00030136,120]
[380078245,1755531310508,-400.0,0.00030136,120]
[380078246,1755531310544,-400.0,0.00030136,120]
[380078247,1755531310580,-2747.68,0.00030136,120]
[380078248,1755531310615,-400.0,0.00030136,120]
[380078249,1755531310648,-400.0,0.00030136,120]
[380078250,1755531310683,-1434.13,0.00030136,120]
[380078251,1755531310722,-400.0,0.00030136,120]
[380078252,1755531310762,-400.0,0.00030136,120]
[380078253,1755531310803,-400.0,0.00030136,120]
[380078254,1755531310843,-850.0,0.00030136,120]
[380078255,1755531310879,-400.0,0.00030136,120]
[380078256,1755531310914,-400.0,0.00030136,120]
[380078257,1755531310949,-4244.93,0.00030136,120]
[380078258,1755531310983,-3700.85,0.00030136,120]
[380078259,1755531311019,-5715.15,0.00030136,120]
[380078260,1755531311055,-2075.1,0.00030136,120]
[380078261,1755531311089,-400.0,0.00030136,120]
[380078262,1755531311134,-400.0,0.00030136,120]
[380078263,1755531311169,-447.89,0.00030136,120]
[380078264,1755531311208,-5032.54,0.00030136,120]
[380078265,1755531311248,-2009.78,0.00030136,120]
[380078266,1755531311289,-1625.31,0.00030136,120]
[380078267,1755531311324,-400.0,0.00030136,120]
[380078268,1755531311359,-400.0,0.00030136,120]
[380078269,1755531311397,-3227.4,0.00030136,120]
[380078270,1755531311433,-400.0,0.00030136,120]
[380078271,1755531311478,-3836.75,0.00030136,120]
[380078272,1755531311515,-403.61,0.00030136,120]
[380078273,1755531311551,-1015.35,0.00030136,120]
[380078274,1755531311587,-535.86009475,0.00030136,120]
[380078275,1755531311623,-400.0,0.00030136,120]
[380078276,1755531311670,-400.0,0.00030136,120]
[380078277,1755531311709,-878.57,0.00030136,120]
[380078278,1755531311749,-400.0,0.00030136,120]
[380078279,1755531311789,-400.0,0.00030136,120]
[380078280,1755531311829,-400.0,0.00030136,120]
[380078281,1755531311870,-400.0,0.00030136,120]
[380078282,1755531311906,-400.0,0.00030136,120]
[380078283,1755531311941,-400.0,0.00030136,120]
[380078284,1755531311977,-3315.79,0.00030136,120]
[380078285,1755531312013,-2099.09,0.00030136,120]
[380078286,1755531312050,-4030.37,0.00030136,120]
[380078287,1755531312087,-1233.5,0.00030136,120]
[380078288,1755531312122,-806.02,0.00030136,120]
[380078289,1755531312159,-705.38,0.00030136,120]
[380078290,1755531312197,-5453.56,0.00030136,120]
[380078291,1755531312238,-400.0,0.00030136,120]
[380078292,1755531312284,-444.13,0.00030136,120]
[380078293,1755531312335,-400.0,0.00030136,120]
[380078294,1755531312374,-3567.66,0.00030136,120]
[380078295,1755531312411,-400.0,0.00030136,120]
[380078296,1755531312448,-400.0,0.00030136,120]
[380078297,1755531312484,-5074.82,0.00030136,120]
[380078298,1755531312532,-7803.58,0.00030136,120]
[380078299,1755531312595,-180.73530182,0.00030136,120]
[380078300,1755531312634,-2022.84,0.00030136,120]
[380078301,1755531312708,-400.0,0.00030136,120]
[380078302,1755531312746,-2772.44,0.00030136,120]
[380078303,1755531312784,-5987.69,0.00030136,120]
[380078304,1755531312822,-1782.59,0.00030136,120]
[380078305,1755531312859,-400.0,0.00030136,120]
[380078306,1755531312897,-400.0,0.00030136,120]
[380078307,1755531312936,-400.0,0.00030136,120]
[380078308,1755531312973,-400.0,0.00030136,120]
[380078309,1755531313011,-2021.72,0.00030136,120]
[380078310,1755531313049,-3545.22,0.00030136,120]
[380078311,1755531313086,-1035.2,0.00030136,120]
[380078312,1755531313124,-1158.17,0.00030136,120]
[380078313,1755531313161,-400.0,0.00030136,120]
[380078314,1755531313199,-400.0,0.00030136,120]
[380078315,1755531313237,-444.13,0.00030136,120]
[380078316,1755531313275,-400.0,0.00030136,120]
[380078317,1755531313313,-400.0,0.00030136,120]
[380078318,1755531313351,-400.0,0.00030136,120]
[380078319,1755531313390,-400.0,0.00030136,120]
[380078320,1755531313429,-10622.52,0.00030136,120]
[380078321,1755531313469,-5069.21,0.00030136,120]
[380078322,1755531313508,-1939.44,0.00030136,120]
[380078323,1755531313547,-500.0,0.00030136,120]
[380078324,1755531313583,-400.0,0.00030136,120]
[380078325,1755531313623,-400.0,0.00030136,120]
[380078326,1755531313662,-1598.75,0.00030136,120]
[380078327,1755531313697,-512.91,0.00030136,120]
[380078328,1755531313734,-574.59,0.00030136,120]
[380078329,1755531313771,-2705.71,0.00030136,120]
[380078330,1755531313807,-400.0,0.00030136,120]
[380078331,1755531313843,-1222.0,0.00030136,120]
[380078332,1755531313881,-400.0,0.00030136,120]
[380078333,1755531313917,-420.4,0.00030136,120]
[380078334,1755531313959,-1665.53,0.00030136,120]
[380078335,1755531313996,-1502.03,0.00030136,120]
[380078336,1755531314033,-400.0,0.00030136,120]
[380078337,1755531314070,-400.0,0.00030136,120]
[380078338,1755531314108,-4073.2,0.00030136,120]
[380078339,1755531314146,-1118.02,0.00030136,120]
[380078340,1755531314187,-1480.46,0.00030136,120]
[380078341,1755531314230,-6338.52,0.00030136,120]
[380078342,1755531314269,-250.0,0.00030136,120]
[380078343,1755531314306,-4084.02,0.00030136,120]
[380078344,1755531314345,-400.0,0.00030136,120]
[380078345,1755531314384,-3321.87,0.00030136,120]
[380078346,1755531314422,-400.0,0.00030136,120]
[380078347,1755531314462,-1003.37,0.00030136,120]
[380078348,1755531314714,-3029.46,0.00030136,120]
[380078349,1755531314752,-400.0,0.00030136,120]
[380078350,1755531314788,-6964.04,0.00030136,120]
[380078351,1755531314829,-1616.2,0.00030136,120]
[380078352,1755531314866,-1028.03,0.00030136,120]
[380078353,1755531314904,-1168.63,0.00030136,120]
[380078354,1755531314943,-5581.76,0.00030136,120]
[380078355,1755531314987,-2409.07,0.00030136,120]
[380078356,1755531315034,-7916.38,0.00030136,120]
[380078357,1755531315079,-754.21,0.00030136,120]
[380078358,1755531315118,-400.0,0.00030136,120]
[380078359,1755531315156,-2936.4,0.00030136,120]
[380078360,1755531315195,-400.0,0.00030136,120]
[380078361,1755531315232,-400.55,0.00030136,120]
[380078362,1755531315271,-2357.35,0.00030136,120]
[380078363,1755531315311,-660.2,0.00030136,120]
[380078364,1755531315353,-400.0,0.00030136,120]
[380078365,1755531315393,-400.0,0.00030136,120]
[380078366,1755531315430,-400.0,0.00030136,120]
[380078367,1755531315468,-400.0,0.00030136,120]
[380078368,1755531315505,-400.0,0.00030136,120]
[380078369,1755531315543,-4615.71,0.00030136,120]
[380078370,1755531315583,-2694.67,0.00030136,120]
[380078371,1755531315620,-400.0,0.00030136,120]
[380078372,1755531315657,-400.0,0.00030136,120]
[380078373,1755531315695,-3717.83,0.00030136,120]
[380078374,1755531315735,-8387.28,0.00030136,120]
[380078375,1755531315774,-400.0,0.00030136,120]
[380078376,1755531315813,-4003.0,0.00030136,120]
[380078377,1755531315849,-1260.89,0.00030136,120]
[380078378,1755531315890,-400.0,0.00030136,120]
[380078379,1755531315927,-400.0,0.00030136,120]
[380078380,1755531315966,-400.0,0.00030136,120]
[380078381,1755531316004,-941.75,0.00030136,120]
[380078382,1755531316040,-1390.18,0.00030136,120]
[380078383,1755531316077,-400.0,0.00030136,120]
[380078384,1755531316113,-400.0,0.00030136,120]
[380078385,1755531316150,-1163.39,0.00030136,120]
[380078386,1755531316192,-4793.96,0.00030136,120]
[380078387,1755531316230,-655.59,0.00030136,120]
[380078388,1755531316267,-400.0,0.00030136,120]
[380078389,1755531316306,-400.0,0.00030136,120]
[380078390,1755531316343,-400.0,0.00030136,120]
[380078391,1755531316381,-11607.13,0.00030136,120]
[380078392,1755531316418,-400.0,0.00030136,120]
[380078393,1755531316456,-408.39,0.00030136,120]
[380078394,1755531316496,-400.0,0.00030136,120]
[380078395,1755531316534,-3700.28,0.00030136,120]
[380078396,1755531316570,-400.0,0.00030136,120]
[380078397,1755531316605,-400.0,0.00030136,120]
[380078398,1755531316642,-400.0,0.00030136,120]
[380078399,1755531316685,-400.0,0.00030136,120]
[380078400,1755531316724,-400.0,0.00030136,120]
[380078401,1755531316762,-300.0,0.00030136,120]
[380078402,1755531316799,-1114.98,0.00030136,120]
[380078403,1755531316837,-400.0,0.00030136,120]
[380078404,1755531316875,-400.0,0.00030136,120]
[380078405,1755531316912,-725.99,0.00030136,120]
[380078406,1755531316949,-568.77,0.00030136,120]
[380078407,1755531316988,-1838.76,0.00030136,120]
[380078408,1755531317026,-1907.28,0.00030136,120]
[380078409,1755531317064,-400.0,0.00030136,120]
[380078410,1755531317102,-9202.82,0.00030136,120]
[380078411,1755531317140,-555.45,0.00030136,120]
[380078412,1755531317183,-5329.35,0.00030136,120]
[380078413,1755531317227,-400.0,0.00030136,120]
[380078414,1755531317275,-2646.49,0.00030136,120]
[380078415,1755531317316,-1480.93,0.00030136,120]
[380078416,1755531317356,-400.0,0.00030136,120]
[380078417,1755531317398,-400.0,0.00030136,120]
[380078418,1755531317440,-3911.47,0.00030136,120]
[380078419,1755531317481,-400.0,0.00030136,120]
[380078420,1755531317527,-1930.43,0.00030136,120]
[380078421,1755531317571,-2981.2,0.00030136,120]
[380078422,1755531317610,-7220.18,0.00030136,120]
[380078423,1755531317653,-400.0,0.00030136,120]
[380078424,1755531317697,-827.84,0.00030136,120]
[380078425,1755531317739,-400.0,0.00030136,120]
[380078426,1755531317784,-5155.41,0.00030136,120]
[380078427,1755531317827,-1227.78,0.00030136,120]
[380078428,1755531317870,-5598.96,0.00030136,120]
[380078429,1755531317911,-1227.78,0.00030136,120]
[380078430,1755531317951,-1227.78,0.00030136,120]
[380078431,1755531317997,-3838.65,0.00030136,120]
[380078432,1755531318038,-1227.78,0.00030136,120]
[380078433,1755531318077,-1227.78,0.00030136,120]
[380078434,1755531318117,-1227.78,0.00030136,120]
[380078435,1755531318178,-1227.78,0.00030136,120]
[380078436,1755531318303,-400.0,0.00030136,120]
[380078437,1755531318344,-4842.6,0.00030136,120]
[380078438,1755531318384,-1227.78,0.00030136,120]
[380078439,1755531318423,-291.35647762,0.00030136,120]
[380078440,1755531318464,-1227.78,0.00030136,120]
[380078441,1755531318503,-674.65,0.00030136,120]
[380078442,1755531318999,-1227.78,0.00030136,120]
[380078443,1755531319038,-400.0,0.00030136,120]
[380078444,1755531319081,-470.54,0.00030136,120]
[380078445,1755531319120,-1227.78,0.00030136,120]
[380078446,1755531319158,-400.0,0.00030136,120]
[380078447,1755531319198,-1227.78,0.00030136,120]
[380078448,1755531319240,-1227.78,0.00030136,120]
[380078449,1755531319282,-1227.78,0.00030136,120]
[380078450,1755531319322,-1227.78,0.00030136,120]
[380078451,1755531319361,-400.0,0.00030136,120]
[380078452,1755531319401,-1227.78,0.00030136,120]
[380078453,1755531319441,-400.0,0.00030136,120]
[380078454,1755531319480,-1227.78,0.00030136,120]
[380078455,1755531319518,-1227.78,0.00030136,120]
[380078456,1755531319557,-5526.25,0.00030136,120]
[380078457,1755531319595,-1227.78,0.00030136,120]
[380078458,1755531319633,-1562.08,0.00030136,120]
[380078459,1755531319672,-1227.78,0.00030136,120]
[380078460,1755531319713,-1227.78,0.00030136,120]
[380078461,1755531319751,-400.0,0.00030136,120]
[380078462,1755531319788,-1227.78,0.00030136,120]
[380078463,1755531319825,-643.28,0.00030136,120]
[380078464,1755531319863,-3131.67,0.00030136,120]
[380078465,1755531319898,-400.0,0.00030136,120]
[380078466,1755531319939,-661.19,0.00030136,120]
[380078467,1755531319976,-1227.78,0.00030136,120]
[380078468,1755531320012,-1425.38,0.00030136,120]
[380078469,1755531320050,-1228.00565551,0.00030136,120]
[380078470,1755531320087,-3535.17,0.00030136,120]
[380078471,1755531320125,-400.0,0.00030136,120]
[380078472,1755531320164,-742.5,0.00030136,120]
[380078473,1755531320202,-1152.62,0.00030136,120]
[380078474,1755531320244,-400.0,0.00030136,120]
[380078475,1755531320292,-400.0,0.00030136,120]
[380078476,1755531320342,-400.0,0.00030136,120]
[380078477,1755531320385,-3298.01,0.00030136,120]
[380078478,1755531320424,-400.0,0.00030136,120]
[380078479,1755531320465,-400.0,0.00030136,120]
[380078480,1755531320503,-432.33,0.00030136,120]
[380078481,1755531320542,-3314.99,0.00030136,120]
[380078482,1755531320580,-400.0,0.00030136,120]
[380078483,1755531320621,-400.0,0.00030136,120]
[380078484,1755531320660,-11590.95,0.00030136,120]
[380078485,1755531320696,-400.0,0.00030136,120]
[380078486,1755531320734,-788.53,0.00030136,120]
[380078487,1755531320772,-400.0,0.00030136,120]
[380078488,1755531320809,-400.0,0.00030136,120]
[380078489,1755531320846,-950.22,0.00030136,120]
[380078490,1755531320884,-400.0,0.00030136,120]
[380078491,1755531320921,-400.0,0.00030136,120]
[380078492,1755531320960,-400.0,0.00030136,120]
[380078493,1755531320998,-2202.28,0.00030136,120]
[380078494,1755531321036,-3523.87,0.00030136,120]
[380078495,1755531321074,-842.02,0.00030136,120]
[380078496,1755531321111,-3565.17,0.00030136,120]
[380078497,1755531321149,-2384.42,0.00030136,120]
[380078498,1755531321191,-1390.83,0.00030136,120]
[380078499,1755531321232,-400.0,0.00030136,120]
[380078500,1755531321271,-3767.17,0.00030136,120]
[380078501,1755531321309,-400.0,0.00030136,120]
[380078502,1755531321347,-400.0,0.00030136,120]
[380078503,1755531321386,-400.0,0.00030136,120]
[380078504,1755531321426,-400.0,0.00030136,120]
[380078505,1755531321465,-524.63,0.00030136,120]
[380078506,1755531321505,-400.0,0.00030136,120]
[380078507,1755531321548,-2954.98,0.00030136,120]
[380078508,1755531321591,-1973.91,0.00030136,120]
[380078509,1755531321634,-400.0,0.00030136,120]
[380078510,1755531321672,-3704.69,0.00030136,120]
[380078511,1755531321710,-3484.28,0.00030136,120]
[380078512,1755531321753,-644.58,0.00030136,120]
[380078513,1755531321795,-518.65,0.00030136,120]
[380078514,1755531321834,-4203.18,0.00030136,120]
[380078515,1755531321871,-1164.03,0.00030136,120]
[380078516,1755531321911,-8434.27,0.00030136,120]
[380078517,1755531321948,-1069.8,0.00030136,120]
[380078518,1755531321986,-1168.61,0.00030136,120]
[380078519,1755531322173,-875.08,0.00030136,120]
[380078520,1755531322218,-488.06,0.00030136,120]
[380078521,1755531322261,-400.0,0.00030136,120]
[380078522,1755531322298,-1383.15,0.00030136,120]
[380078523,1755531322336,-2665.9,0.00030136,120]
[380078524,1755531322374,-400.0,0.00030136,120]
[380078525,1755531322411,-400.0,0.00030136,120]
[380078526,1755531322451,-2738.61,0.00030136,120]
[380078527,1755531322488,-400.0,0.00030136,120]
[380078528,1755531322526,-1788.64,0.00030136,120]
[380078529,1755531322564,-400.22663355,0.00030136,120]
[380078530,1755531322603,-400.0,0.00030136,120]
[380078531,1755531322640,-1726.01,0.00030136,120]
[380078532,1755531322677,-2110.2,0.00030136,120]
[380078533,1755531322714,-8324.81,0.00030136,120]
[380078534,1755531322750,-2200.06,0.00030136,120]
[380078535,1755531322786,-917.28,0.00030136,120]
[380078536,1755531322822,-1004.01,0.00030136,120]
[380078537,1755531322859,-11683.72,0.00030136,120]
[380078538,1755531322897,-574.67,0.00030136,120]
[380078539,1755531322936,-483.58,0.00030136,120]
[380078540,1755531322972,-4110.68,0.00030136,120]
[380078541,1755531323008,-3310.12,0.00030136,120]
[380078542,1755531323043,-848.98,0.00030136,120]
[380078543,1755531323079,-523.03,0.00030136,120]
[380078544,1755531323116,-400.0,0.00030136,120]
[380078545,1755531323154,-400.0,0.00030136,120]
[380078546,1755531323191,-400.0,0.00030136,120]
[380078547,1755531323232,-2748.24,0.00030136,120]
[380078548,1755531323272,-1852.08,0.00030136,120]
[380078549,1755531323309,-2944.67,0.00030136,120]
[380078550,1755531323348,-1866.6,0.00030136,120]
[380078551,1755531323386,-400.0,0.00030136,120]
[380078552,1755531323424,-3658.8,0.00030136,120]
[380078553,1755531323462,-400.0,0.00030136,120]
[380078554,1755531323501,-630.28,0.00030136,120]
[380078555,1755531323538,-535.53,0.00030136,120]
[380078556,1755531323576,-400.0,0.00030136,120]
[380078557,1755531323617,-400.0,0.00030136,120]
[380078558,1755531323655,-400.0,0.00030136,120]
[380078559,1755531323694,-1190.81,0.00030136,120]
[380078560,1755531323738,-400.0,0.00030136,120]
[380078561,1755531323780,-400.0,0.00030136,120]
[380078562,1755531323824,-1243.76,0.00030136,120]
[380078563,1755531323891,-456.75,0.00030136,120]
[380078564,1755531323933,-3917.55,0.00030136,120]
[380078565,1755531323980,-999.28,0.00030136,120]
[380078566,1755531324017,-400.0,0.00030136,120]
[380078567,1755531324055,-400.0,0.00030136,120]
[380078568,1755531324092,-2378.07,0.00030136,120]
[380078569,1755531324130,-3159.52,0.00030136,120]
[380078570,1755531324168,-400.0,0.00030136,120]
[380078571,1755531324211,-2338.11,0.00030136,120]
[380078572,1755531324250,-400.0,0.00030136,120]